{"text_format":"1","workbook":"xlsx","n_sheets":8,"sheets":["INSTRUCC","Ficha","MIR","SinMatriz","Avances","AvancesAnual","Base","Listas"],"not_rendered":{"charts":0,"images":22,"macros":1,"external_links":6,"defined_names":120,"comments":1,"pivot_tables":0},"unopened":[],"bounds":{"document_bytes":16777216,"sheet_cells":100000,"rows_first":2000,"rows_last":500,"rows_between":2000,"halvings":0,"cell_chars":16384,"cell_head_chars":4096},"cells_cut":0,"cells_raw":0,"read":"whole","date_system":"1900"}

{"sheet":"INSTRUCC","index":0,"n_rows":14,"n_cols":1,"rows_kept":14,"cut":false,"hidden":false,"merged":[]}
[]
["LEA ESTO ANTES DE INICIAR"]
[]
["En este archivo los programas con MIR y Sin Matriz están registrados tal como se documentaron en el ejercicio de programación presupuestal, es decir, como fueron aprobados por las autoridades competentes del ente fiscalizable, con esos datos reportará los Avances de gestión semestral y anual. "]
["Al abrir este archivo se le preguntó si quería actualizar vínculos, habilitar macros, confiar en el archivo, entre otras; si no lo hizo, cierre el archivo, ábralo nuevamente y acéptelas. El sistema de su computadora está diseñado para detectar posibles afectaciones a su equipo o sistemas y por ello lanzará alertas, este archivo no supone un riesgo, si lo ha descargado directamente del portal de la ASEJ. Acepte todas las habilitaciones de seguridad que se le proponen, de lo contrario, no podrá continuar. "]
["Comience en la hoja Ficha donde registrará los nombres de los programas que registrará con Matrices e Indicadores de Desempeño y aquellos que registrará sin ellas. "]
["En seguida en la pestaña MIR comience escribiendo el nombre oficial exacto del Ente fiscalizable (municipio u OPD) que registra el programa. Escriba los datos generales del programa dispuestos en la tabla vertical y posteriormente proceda a registrar cada programa en la Matriz Para Indicadores de Resultados que esta dispuesta en la parte de abajo de la hoja. Para agregar componentes y actividades utilice los botones de comando que están arriba a derecha, Por favor no agregue manualmente renglones ya que esto impedirá el correcto funcionamiento del archivo y deberá registrar de nuevo sus programas. "]
["Llenada la \"MIR\" revise exhaustivamente a información contenida ahí, pues una vez que guarde con el botón de comando dispuesto arriba a la derecha, no podrá hacer ningún cambio. Una vez hecho esto GUARDE EL PROGRAMA CON EL BOTÓN de COMANDO \"GUARDAR PROGRAMA\" ANTES DE AGREGAR OTRO. Una vez guardado puede agregar otro programa, cuando agregue otro programa desaparecerá la información que tiene en el formulario \"MIR\", no obstante la información estará resguardada en la hoja \"Base\" si guardó el programa con el botón de comando antes de agregar uno nuevo. "]
["Si posee programas que no requieren MIR puede registrarlos en la hoja \"SinMatriz\" ahí cada registro (renglón) es una programa, capture la información que se solicita en cada columna y guarde con el comando guardar de Excel (en este caso no hay un botón de guardado para transferir los datos a otra hoja). Continúe en el siguiente registro para captura la información de otro programa."]
["En este archivo se encuentra la pestaña “Avances” que es donde registrará la información de Avances semestrales con lo que cumplirá con el informe de desempeño de la gestión.  Este es el medio para hacerlo y no existe otro método para ello. "]
["Siga las instrucciones seleccionando primero el ente fiscalizable que reporta y continúe oprimiendo el botón “1” de la derecha. Esto desplegará la información proporcionada en la integración del presupuesto y de la que deberá registrar los Avances. Una vez que registre los Avances, puede imprimir el formulario lleno, sea en papel o como archivo PDF, para su control interno. "]
["No olvide oprimir el botón “3” que guarda su información. Al hacerlo se borrará toda la información del formulario y estará listo para registrar Avances de los demás programas que haya registrado con el formulario de la hoja \"MIR\". No se preocupe, su información ha sido correctamente guardada en la base de datos, pero no puede ser recuperada ni modificada,  por lo que se sugiere que la revise bien antes de guardarla. La información de los Avances de los programas se da por entregada con la hoja “Base” en las condiciones, formato y características con las que posee al momento de entregar este archivo. Su modificación, alteración, cambio de nombre en la pestaña, columnas, contraseñas o cualquier cambio que se realice dará por resultado la consideración de incumplimiento de la entrega."]
["Si su archivo en la pestaña de “Avances” no despliega ningún programa para reportar Avances, se debe a que registró sus programas en la Pestaña “SinMatriz”, ahí mismo encontrará nuevas columnas en donde podrá registrar sus Avances. Si no hay programas para reportar Avances ni en la pestaña “SinMatriz” ni en “Avances” es porque aún no ha registrado programas en el sistema de evaluación de desempeño. Deberá hacerlo en las pestañas “MIR” y “SinMatriz” y después continuar con la pestaña “Avances” para registrar sus Avances."]
["Atte. Dirección de Auditoría de Desempeño."]

{"sheet":"Ficha","index":1,"n_rows":64,"n_cols":8,"rows_kept":64,"cut":false,"hidden":false,"merged":[]}
[]
[]
[]
[]
[null,null,null,"Información para la evaluación del desempeño"]
[]
[null,null,null,"Municipio"]
[]
[]
[null,null,null,"Registre por favor los programas que fueron capturados en la pestaña MIR",null,null,null,"Registre por favor los programas que fueron capturados en la pestaña SinMatriz"]
[null,null,1,null,null,null,1]
[null,null,2,null,null,null,2]
[null,null,3,null,null,null,3]
[null,null,4,null,null,null,4]
[null,null,5,null,null,null,5]
[null,null,6,null,null,null,6]
[null,null,7,null,null,null,7]
[null,null,8,null,null,null,8]
[null,null,9,null,null,null,9]
[null,null,10,null,null,null,10]
[null,null,11,null,null,null,11]
[null,null,12,null,null,null,12]
[null,null,13,null,null,null,13]
[null,null,14,null,null,null,14]
[null,null,15,null,null,null,15]
[null,null,16,null,null,null,16]
[null,null,17,null,null,null,17]
[null,null,18,null,null,null,18]
[null,null,19,null,null,null,19]
[null,null,20,null,null,null,20]
[null,null,21,null,null,null,21]
[null,null,22,null,null,null,22]
[null,null,23,null,null,null,23]
[null,null,24,null,null,null,24]
[null,null,25,null,null,null,25]
[null,null,26,null,null,null,26]
[null,null,27,null,null,null,27]
[null,null,28,null,null,null,28]
[null,null,29,null,null,null,29]
[null,null,30,null,null,null,30]
[null,null,31,null,null,null,31]
[null,null,32,null,null,null,32]
[null,null,33,null,null,null,33]
[null,null,34,null,null,null,34]
[null,null,35,null,null,null,35]
[null,null,36,null,null,null,36]
[null,null,37,null,null,null,37]
[null,null,38,null,null,null,38]
[null,null,39,null,null,null,39]
[null,null,40,null,null,null,40]
[null,null,41,null,null,null,41]
[null,null,42,null,null,null,42]
[null,null,43,null,null,null,43]
[null,null,44,null,null,null,44]
[null,null,45,null,null,null,45]
[null,null,46,null,null,null,46]
[null,null,47,null,null,null,47]
[null,null,48,null,null,null,48]
[null,null,49,null,null,null,49]
[null,null,50,null,null,null,50]
[]
[null,null,null,"Número de programas con MIR (programas que fueron capturados en la pestaña MIR)",null,null,null,"Número de programas sin matriz (programas que fueron capturados en la pestaña SinMatriz)"]
[]
[null,null,null,"TOTAL",null,{"$f":"F62+J62","v":0}]

{"sheet":"MIR","index":2,"n_rows":23,"n_cols":26,"rows_kept":23,"cut":false,"hidden":false,"merged":[[16,4,16,16],[16,17,16,25],[8,2,8,3],[9,1,10,1],[9,2,9,3],[10,2,10,3],[11,1,12,1],[11,2,11,3],[12,2,12,3],[14,11,14,20],[11,11,11,20],[12,11,12,20],[13,11,13,20],[13,1,14,1],[13,2,13,3],[14,2,14,3],[7,2,7,3],[2,2,2,3],[3,2,3,3],[4,2,4,3],[5,2,5,3],[6,2,6,3]]}
[]
[null,null,null,null,null,null,null,null,null,null,null,"  MATRIZ DE INDICADORES PARA RESULTADOS POR PROGRAMA "]
[null,null,"Municipio"]
[null,null,"Denominación del Programa"]
[null,null,"Categoría programática"]
[null,null,"Unidad Responsable/OPD"]
[null,null,"Finalidad"]
[null,null,"Función"]
[null,null,"Sub-función"]
[null,"Plan Nacional de Desarrollo","Alineación con objetivos superiores del PND"]
[null,null,"Alineación con objetivos secundarios del PND"]
[null,"Plan Estatal de Desarrollo","Alineación con objetivos superiores del PED",null,null,null,null,null,null,null,null,"Llene la sección de la izquierda primero con los datos solicitados. \nLlene la sección de abajo con los datos solicitados."]
[null,null,"Alineación con objetivos secundarios del PED",null,null,null,null,null,null,null,null,"Si es necesario agrege componentes y actividades con los botones de la derecha.\nUna vez que termine de escribir los datos del programa Pulse GUARDAR PROGRAMA con el botón del panel de la derecha. Despues de esto no es posible hacer cambios."]
[null,"Plan Municipal de Desarrollo","Alineación con objetivos superiores del PMD",null,null,null,null,null,null,null,null,"Si requiere imprimir la información de este progarma pulse IMPRIMIR en el botón del panel de la derecha. \nSolo es posible imprimir un programa a la vez, NO INTENTE AGREGAR OTRO PROGARAMA."]
[null,null,"Alineación con objetivos secundarios del PMD",null,null,null,null,null,null,null,null,"NO PULSE EL BOTÓN DE AGREGAR OTRO PROGRAMA ANTES DE GUARDAR O IMPRIMIR.\nUna vez que haya GUARDADO e IMPRESO pulse AGREGAR NUEVO PROGRAMA, los datos de la plantilla se borrarán, no se precupe los datos de su programa están salvados"]
[]
[null,null,null,null,"I N D I C A D O R E S",null,null,null,null,null,null,null,null,null,null,null,null,"P R E S U P U E S T O"]
[null,null,null,null,"Resumen Narrativo","Nombre del indicador","Definición","Dimensión","Tipo","Método de cálculo","Valor programado 1 (Numerador)","Valor programado 2 (Denominador)","Frecuencia de medición","Unidad de medida","Metas","Medios de verificación","Supuestos","Capítulo 1000","Capítulo 2000","Capítulo 3000","Capítulo 4000","Capítulo 5000","Capítulo 6000","Capítulo 7000","Capítulo 8000","Capítulo 9000"]
[null,null,"Fin"]
[null,null,"Propósito"]
[null,null,"Componente 1"]
[null,null,"Actividad 1.1"]
[null,null,"Actividad 1.2"]

{"sheet":"SinMatriz","index":3,"n_rows":5,"n_cols":52,"rows_kept":5,"cut":false,"hidden":false,"merged":[[2,1,2,14]]}
[]
[]
["Municipio"]
[]
["No. ",null,"Denominación del programa","Objetivo","Nombre del indicador","Definición del indicador","Dimensión","Tipo de Indicador","Método de cálculo","Valor programado 1 (Numerador)","Valor programado 2 (Denominador)","Frecuencia de medición del indicador","Unidad de medida del indicador","Meta","Unidad responsable OPD","Alineación con objetivos superiores del PND","Alineación con objetivos secundarios del PND","Alineación con objetivos superiores del PED","Alineación con objetivos secundarios del PED","Alineación con objetivos superiores del PMD","Alineación con objetivos secundarios del PMD","Capítulo 1000","Capítulo 2000","Capítulo 3000","Capítulo 4000","Capítulo 5000","Capítulo 6000","Capítulo 7000","Capítulo 8000","Capítulo 9000","Avance 1er Semestre del Valor programado 1 (Numerador)","Avance 1er Semestre del Valor programado 2 (Denominador)","Avance Anual del Valor programado 1 (Numerador)","Avance Anual del Valor programado 2 (Denominador)","Avance 1er Semestre del Capítulo 1000","Avance 1er Semestre del Capítulo 2000","Avance 1er Semestre del Capítulo 3000","Avance 1er Semestre del Capítulo 4000","Avance 1er Semestre del Capítulo 5000","Avance 1er Semestre del Capítulo 6000","Avance 1er Semestre del Capítulo 7000","Avance 1er Semestre del Capítulo 8000","Avance 1er Semestre del Capítulo 9000","Avance Anual del Capítulo 1000","Avance Anual del Capítulo 2000","Avance Anual del Capítulo 3000","Avance Anual del Capítulo 4000","Avance Anual del Capítulo 5000","Avance Anual del Capítulo 6000","Avance Anual del Capítulo 7000","Avance Anual del Capítulo 8000","Avance Anual del Capítulo 9000"]

{"sheet":"Avances","index":4,"n_rows":61,"n_cols":21,"rows_kept":61,"cut":false,"hidden":false,"merged":[[7,21,8,21],[1,21,3,21],[10,10,10,20],[5,1,5,2],[6,1,6,2],[7,1,7,2],[10,3,10,9],[8,1,8,2]]}
[null,null,1]
[null,null,1]
[null,null,"REPORTE DE AVANCES PARA MATRIZ DE INDICADORES PARA RESULTADOS POR PROGRAMA "]
[null,null,1,null,"A V A N C E      S E M E S T R A L"]
[null,null,1]
[null,"Municipio"]
[null,"Denominación del Programa"]
[null,"Unidad Responsable/OPD"]
[null,"Periodo que se reporta",null,"SEMESTRAL"]
[null,null,1]
[null,null,1,"I N D I C A D O R E S",null,null,null,null,null,null,"A V A N C E S"]
[null,null,"Nivel","Resumen Narrativo","Nombre del indicador","Método de cálculo","Valor programado 1 (Numerador)","Valor programado 2 (Denominador)","Frecuencia de medición","Meta","Avance del valor programado 1 (numerador)","Avance del valor programado 2 (denominador)","Avance del Capítulo 1000","Avance del Capítulo 2000","Avance del Capítulo 3000","Avance del Capítulo 4000","Avance del Capítulo 5000","Avance del Capítulo 6000","Avance del Capítulo 7000","Avance del Capítulo 8000","Avance del Capítulo 9000"]
[{"$f":"$D$6","v":0},{"$f":"$D$7","v":0},"Fin"]
[0,0,"Propósito"]
[0,0,"Componente 1"]
[0,0,"Actividad 1.1"]
[0,0]
[0,0]
[0,0]
[0,0]
[0,0]
[0,0]
[0,0]
[0,0]
[0,0]
[0,0]
[0,0]
[0,0]
[0,0]
[0,0]
[0,0]
[0,0]
[0,0]
[0,0]
[0,0]
[0,0]
[0,0]
[0,0]
[0,0]
[{"$f":"$D$6","v":0},{"$f":"$D$7","v":0}]
[0,0]
[0,0]
[0,0]
[0,0]
[0,0]
[0,0]
[0,0]
[0,0]
[0,0]
[0,0]
[0,0]
[0,0]
[0,0]
[0,0]
[0,0]
[0,0]
[0,0]
[0,0]
[0,0]
[0,0]
[0,0]

{"sheet":"AvancesAnual","index":5,"n_rows":99,"n_cols":21,"rows_kept":99,"cut":false,"hidden":false,"merged":[[10,3,10,9],[10,10,10,20],[1,21,3,21],[5,1,5,2],[6,1,6,2],[7,1,7,2],[7,21,8,21],[8,1,8,2]]}
[null,null,1]
[null,null,1]
[null,null,"REPORTE DE AVANCES PARA MATRIZ DE INDICADORES PARA RESULTADOS POR PROGRAMA "]
[null,null,1,null,"A V A N C E      A N U A L"]
[null,null,1]
[null,"Municipio"]
[null,"Denominación del Programa"]
[null,"Unidad Responsable/OPD"]
[null,"Periodo que se reporta",null,"ANUAL"]
[null,null,1]
[null,null,1,"I N D I C A D O R E S",null,null,null,null,null,null,"A V A N C E S"]
[null,null,"Nivel","Resumen Narrativo","Nombre del indicador","Método de cálculo","Valor programado 1 (Numerador)","Valor programado 2 (Denominador)","Frecuencia de medición","Meta","Avance del valor programado 1 (numerador)","Avance del valor programado 2 (denominador)","Avance del Capítulo 1000","Avance del Capítulo 2000","Avance del Capítulo 3000","Avance del Capítulo 4000","Avance del Capítulo 5000","Avance del Capítulo 6000","Avance del Capítulo 7000","Avance del Capítulo 8000","Avance del Capítulo 9000"]
[{"$f":"$D$6","v":0},{"$f":"$D$7","v":0}]
[{"$f":"$D$6","v":0},{"$f":"$D$7","v":0}]
[0,0]
[0,0]
[0,0]
[0,0]
[0,0]
[0,0]
[0,0]
[0,0]
[0,0]
[0,0]
[0,0]
[0,0]
[0,0]
[0,0]
[0,0]
[0,0]
[0,0]
[0,0]
[0,0]
[0,0]
[0,0]
[0,0]
[0,0]
[0,0]
[0,0]
[0,0]
[0,0]
[0,0]
[0,0]
[0,0]
[0,0]
[0,0]
[0,0]
[0,0]
[0,0]
[0,0]
[0,0]
[0,0]
[0,0]
[0,0]
[0,0]
[0,0]
[0,0]
[0,0]
[0,0]
[0,0]
[0,0]
[0,0]
[0,0]
[0,0]
[0,0]
[0,0]
[0,0]
[0,0]
[0,0]
[0,0]
[0,0]
[0,0]
[0,0]
[0,0]
[0,0]
[0,0]
[0,0]
[{"$f":"$D$6","v":0},{"$f":"$D$7","v":0}]
[0,0]
[0,0]
[0,0]
[0,0]
[0,0]
[0,0]
[0,0]
[0,0]
[0,0]
[0,0]
[0,0]
[0,0]
[0,0]
[0,0]
[0,0]
[0,0]
[0,0]
[0,0]
[0,0]
[0,0]
[0,0]

{"sheet":"Base","index":6,"n_rows":1,"n_cols":60,"rows_kept":1,"cut":false,"hidden":false,"merged":[]}
["ID","Ente auditable","Denominación del Programa","Categoría programática","Unidad Responsable","Finalidad","Función","Sub-función","Alineación con objetivos superiores del PND","Alineación con objetivos secundarios del PND","Alineación con objetivos superiores del PED","Alineación con objetivos secundarios del PED","Alineación con objetivos superiores del PMD","Alineación con objetivos secundarios del PMD","Nivel MIR","Código del nivel MIR","Resumen Narrativo (objetivos)","Nombre del indicador","Definición del indicador","Dimensión del indicador","Tipo de indicador","Método de Cálculo del indicador","Valor programado 1 (Numerador)","Valor programado 2 (Denominador)","Frecuencia de Medición del indicador","Unidad de Medida del indicador","Metas del indicador","Medios de Verificación del indicador","Supuestos del indicador","Capítulo 1000","Capítulo 2000","Capítulo 3000","Capítulo 4000","Capítulo 5000","Capítulo 6000","Capítulo 7000","Capítulo 8000","Capítulo 9000","Avance 1er Semestre del Valor programado 1 (Numerador)","Avance 1er Semestre del Valor programado 2 (Denominador)","Avance Anual del Valor programado 1 (Numerador)","Avance Anual del Valor programado 2 (Denominador)","Avance 1er Semestre del Capítulo 1000","Avance 1er Semestre del Capítulo 2000","Avance 1er Semestre del Capítulo 3000","Avance 1er Semestre del Capítulo 4000","Avance 1er Semestre del Capítulo 5000","Avance 1er Semestre del Capítulo 6000","Avance 1er Semestre del Capítulo 7000","Avance 1er Semestre del Capítulo 8000","Avance 1er Semestre del Capítulo 9000","Avance Anual del Capítulo 1000","Avance Anual del Capítulo 2000","Avance Anual del Capítulo 3000","Avance Anual del Capítulo 4000","Avance Anual del Capítulo 5000","Avance Anual del Capítulo 6000","Avance Anual del Capítulo 7000","Avance Anual del Capítulo 8000","Avance Anual del Capítulo 9000"]

{"sheet":"Listas","index":7,"n_rows":174,"n_cols":33,"rows_kept":174,"cut":false,"hidden":true,"merged":[]}
[]
[null,"Municipio","Denominación del Programa","Categoría programática","Unidad responsable","Fin","Función","Sub-función","Alineación con objetivos superiores del PND","Alineación con objetivos secundarios del PND","Alineación con objetivos superiores del PED","Alineación con objetivos secundarios del PED","Alineación con objetivos superior del PMD","Alineación con objetivos secundario del PMD","Nivel MIR","Resumen del nivel MIR","Resumen Narrativo (objetivos)","Cantidad de Gasto","Nombre","Definición","Dimensión","Tipo","Variables","Método de Cálculo","Frecuencia de Medición","Unidad de Medida","Valores Programados","Metas","Medios de Verificación","Supuestos"]
[null,"Acatic",null,"Subsidios sujetos a reglas de operación",null,"Gobierno","Legislación","1.1.1 Legislación","México_en_Paz","1.1. Promover y fortalecer la gobernabilidad democrática","O1_Incrementar_la_sostenibilidad_del_medio_ambiente_y_la_vulnerabilidad_del_cambio_climático","O1E1 Detener y revertir la degradación del medio ambiente",null,null,"Fin","F",null,null,null,null,"Eficacia","Estratégico",null,null,"Semanal",null,null,null,null,null,null,null,"Primer semestre"]
[null,"Acatlán de Juárez",null,"Otros subsidios",null,"Desarrollo_Social","Justicia","1.1.2 Fiscalización","México_Incluyente","1.2. Garantizar la seguridad nacional","O2_Impulsar_el_desarrollo_sostenible_de_las_regiones_del_estado","O1E2 Efectuar una ordenación y manejo sostenible de los bosques",null,null,"Propósito","P",null,null,null,null,"Eficiencia","Gestión",null,null,"Mensual",null,null,null,null,null,null,null,"Segundo semestre"]
[null,"Ahualulco de Mercado",null,"Prestación de servicios públicos",null,"Desarrollo_Económico","Coordinación_Política_de_Gobierno","1.2.1 Impartición de Justicia","México_con_Educación_de_Calidad","1.3. Mejorar las condiciones de seguridad pública","O3_Promover_un_desarrollo_urbano_sostenible_equitativo_y_ordenado","O1E3 Frenar la pérdida de diversidad biológica",null,null,"Componentes","C1",null,null,null,null,"Economía",null,null,null,"Bimestral"]
[null,"Amacueca",null,"Provisión de bienes públicos",null,"Otros","Relaciones_Exteriores","1.2.2 Procuración de Justicia","México_Próspero","1.4. Garantizar un sistema de Justicia Penal eficaz, expedito, imparcial y transparente","O4_Garantizar_el_suministro_del_agua_para_población_y_actividades_productivas","O1E4 Incrementar el manejo sustentable de los residuos",null,null,"Actividades","C2",null,null,null,null,"Calidad",null,null,null,"Trimestral"]
[null,"Amatitán",null,"Planeación, Seguimiento y Evaluación de políticas Públicas",null,null,"Asuntos_Financieros_y_Hacendarios","1.2.3 Reclusión y Readaptación Social","México_Con_Responsabilidad_Global","1.5. Garantizar el respeto y protección de los derechos humanos y la erradicación de la discriminación","O5_Mejorar_la_calidad_seguridad_y_sostenibilidad_de_la_movilidad_urbana","O1E5 Incrementar la producción y uso de fuentes de energía limpias",null,null,null,"C3",null,null,null,null,null,null,null,null,"Cuatrimestral"]
[null,"Ameca",null,"Promoción y fomento",null,null,"Asuntos_de_Orden_Público_y_Seguridad_Interior","1.2.4 Derechos Humanos",null,"1.6. Salvaguardar a la población, a sus bienes y a su entorno ante un desastre de origen natural o humano","O6_Disminuir_los_factores_de_riesgo_y_mejorar_la_atención_ante_desastres","O1E6 Mitigar las emisiones de gases de efecto invernadero",null,null,null,"C1A1",null,null,null,null,null,null,null,null,"Semestral"]
[null,"San Juanito de Escobedo",null,"Regulación y Supervisión",null,null,"Otros_Servicios_Generales","1.3.1 Presidencia / Gubernatura",null,"2.1. Garantizar el ejercicio efectivo de los derechos sociales para toda la población","O7_Incrementar_la_formalidad_del_empleo_la_seguridad_social_y_estabilidad_laboral","O1E7 Ordenar y proteger de manera sostenible los ecosistemas lacustres y costeros",null,null,null,"C1A2",null,null,null,null,null,null,null,null,"Anual"]
[null,"Arandas",null,"Específicos",null,null,"Protección_Ambiental","1.3.2 Política Interior",null,"2.2. Transitar hacia una sociedad equitativa e incluyente","O8_Mejorar_la_competitividad_y_el_crecimiento_inclusivo_y_sostenible_de_los_sectores_económicos","O1E8 Reducir la contaminación de acuíferos y aguas superficiales",null,null,null,"C1A3",null,null,null,null,null,null,null,null,"Bienal"]
[null,"El Arenal",null,"Proyectos de Inversión",null,null,"Vivienda_y_Servicios_a_la_Comunidad","1.3.3 Preservación y Cuidado del Patrimonio Público",null,"2.3. Asegurar el acceso a los servicios de salud","O9_Incrementar_de_forma_sostenible_la_productividad_y_rentabilidad_de_las_actividades_del_sector_primario","O1E9 Reducir la vulnerabilidad y aumentar la resiliencia de la sociedad, las cuencas hidrológicas y los ecosistemas naturales, urbanos y agropecuarios frente a los efectos adversos del cambio climático",null,null,null,"C1A4",null,null,null,null,null,null,null,null,"Trienal"]
[null,"Atemajac de Brizuela",null,"Apoyo al Proceso Presupuestario y para Mejorar la Eficiencia Institucional",null,null,"Salud","1.3.4 Función Pública",null,"2.4. Ampliar el acceso a la seguridad social","O10_Incrementar_la_afluencia_y_la_derrama_económica_proveniente_del_turismo","O1E10 Revertir el deterioro de la calidad del aire",null,null,null,"C2A1",null,null,null,null,null,null,null,null,"Sexenal"]
[null,"Atengo",null,"Apoyo a la Función Pública y al Mejoramiento de la Gestión",null,null,"Recreación_Cultura_y_Otras_Manifestaciones_Sociales","1.3.5 Asuntos Jurídicos",null,"2.5. Proveer un entorno adecuado para el desarrollo de una vida digna","O11_Mejorar_la_conectividad_de_Jalisco_sus_regiones_y_municipios","O2E1 Actualizar los ordenamientos ecológicos territoriales y su aplicación efectiva",null,null,null,"C2A2",null,null,null,null,null,null,null,null,"Periódico"]
[null,"Atenguillo",null,"Operaciones Ajenas",null,null,"Educación","1.3.6 Organización de Procesos Electorales",null,"3.1. Desarrollar el potencial humano de los mexicanos con educación de calidad","O12_Reducir_la_pobreza_y_la_desigualdad","O2E2 Desarrollar el potencial humano de las regiones con acceso a una educación de calidad",null,null,null,"C2A3"]
[null,"Atotonilco el Alto",null,"Obligaciones de Cumplimiento de Resolución Jurisdiccional",null,null,"Protección_Social","1.3.7 Población",null,"3.2. Garantizar la inclusión y la equidad en el Sistema Educativo","O13_Proteger_los_derechos_y_ampliar_las_oportunidades_de_desarrollo_de_los_grupos_prioritarios","O2E3 Generar oportunidades de empleos dignos aprovechando de forma sustentable las potencialidades regionales",null,null,null,"C2A4"]
[null,"Atoyac",null,"Desastres Naturales",null,null,"Otros_Asuntos_Sociales","1.3.8 Territorio",null,"3.3. Ampliar el acceso a la cultura como un medio para la formación integral\n de los ciudadanos","O14_Mejorar_la_salud_de_la_población","O2E4 Incrementar y mejorar la infraestructura productiva  y social",null,null,null,"C3A1"]
[null,"Autlán de Navarro",null,"Pensiones y Jubilaciones.",null,null,"Asuntos_Económicos_Comerciales_y_Laborales_Generales","1.3.9 Otros Asuntos de Orden Público y Seguridad Interior",null,"3.4. Promover el deporte de manera incluyente para fomentar una cultura\n de salud","O15_Aumentar_el_acceso_de_la_población_a_una_vivienda_digna","O2E5 Mejorar la capacidad de gestión de los funcionarios y autoridades municipales",null,null,null,"C3A2"]
[null,"Ayotlán",null,"Aportaciones a la Seguiridad Social",null,null,"Agropecuaria_Silvicultura_Pesca_y_Caza","1.4.1 Relaciones Exteriores",null,"3.5.Hacer del desarrollo científico, tecnológico y la innovación pilares para el progreso económico y social sostenible","O16_Incrementar_el_acceso_la_equidad_y_la_calidad_de_la_educación","O2E6 Reducir la pobreza y la desigualdad",null,null,null,"C3A3"]
[null,"Ayutla",null,null,null,null,"Combustibles_y_Energía","1.5.1 Asuntos Financieros",null,"4.1. Mantener la estabilidad macroeconómica del país","O17_Incrementar_el_desarrollo_tecnológico_la_investigación_científica_y_la_innovación","O3E1 Conservar los suelos, incrementar las áreas verdes y las reservas territoriales",null,null,null,"C4A4"]
[null,"La Barca",null,null,null,null,"Minería_Manufacturas_y_Construcción","1.5.2 Asuntos Hacendarios",null,"4.2. Democratizar el acceso al financiamiento de proyectos con potencial de crecimiento","O18_Garantizar_el_acceso_de_toda_la_población_a_la_cultura_y_las_diferentes_expresiones_artísticas","O3E2 Impulsar un desarrollo urbano orientado al transporte sustentable"]
[null,"Bolaños",null,null,null,null,"Transporte","1.7.1 Policía",null,"4.3. Promover el empleo de calidad","O19_Aumentar_la_práctica_del_deporte_y_actividades_físicas_de_la_población","O3E3 Incrementar y mejorar los servicios y espacios públicos"]
[null,"Cabo Corrientes",null,null,null,null,"Comunicaciones","1.7.2 Protección Civil",null,"4.4. Impulsar y orientar un crecimiento verde incluyente y facilitador que preserve nuestro atrimonio natural al mismo tiempo que genere riqueza, competitividad y empleo","O20_Reducir_la_incidencia_delictiva_y_mejorar_la_percepción_de_seguridad","O3E4 Mejorar la conectividad y articulación de las principales ciudades con una perspectiva regional e interestatal"]
[null,"Casimiro Castillo",null,null,null,null,"Turismo","1.7.3 Otros Asuntos de Orden Público y Seguridad",null,"4.5. Democratizar el acceso a servicios de telecomunicaciones","O21_Mejorar_la_impartición_de_justicia_con_un_sistema_eficaz_expedito_imparcial_y_transparente","O3E5 Ordenar el crecimiento de las áreas urbanas y asegurar el cumplimiento de la normatividad inherente"]
[null,"Cihuatlán",null,null,null,null,"Ciencia_Tecnología_e_Innovación","1.7.4 Sistema Nacional de Seguridad Pública",null,"4.6. Abastecer de energía al país con precios competitivos, calidad y eficiencia a lo largo de la cadena productiva","O22_Reducir_la_impunidad_mejorando_la_imparcialidad_transparencia_y_eficiencia_en_la_procuración_de_justicia","O3E6 Promover un crecimiento urbano equitativo mediante la oferta de suelo accesible y de calidad a los sectores de menores ingresos"]
[null,"Zapotlán el Grande",null,null,null,null,"Otras_Industrias_y_Otros_Asuntos_Económicos","1.8.1 Servicios Registrales, Administrativos y Patrimoniales",null,"4.7. Garantizar reglas claras que incentiven el desarrollo de un mercado interno competitivo","O23_Garantizar_el_respeto_y_la_protección_de_los_derechos_humanos_y_eliminar_la_discriminación","O3E7 Reducir la contaminación del agua y aire, así como la visual y auditiva"]
[null,"Cocula",null,null,null,null,"Transacciones_de_la_Deuda_Financiera_y_Costo_Financiero_Deuda","1.8.2 Servicios Estadísticos",null,"4.8. Desarrollar los sectores estratégicos del país","O24_Mejorar_la_estabilidad_y_funcionalidad_del_sistema_democrático","O3E8 Reducir la fragmentación territorial y política en las áreas metropolitanas mediante la aplicación de un modelo de gobernanza metropolitana"]
[null,"Colotlán",null,null,null,null,"Transferencias_Participaciones_y_Aportaciones","1.8.3 Servicios de Comunicación y Medios",null,"4.9. Contar con una infraestructura de transporte que se refleje en menores costos para realizar la actividad económica","O25_Mejorar_la_efectividad_de_las_instituciones_públicas_y_gubernamentales","O4E1 Fortalecer el desarrollo y la capacidad técnica y financiera de los organismos operadores del agua"]
[null,"Concepción de Buenos Aires",null,null,null,null,"Saneamiento_del_Sistema_Financiero","1.8.4 Acceso a la Información Pública Gubernamental",null,"4.10. Construir un sector agropecuario y pesquero productivo que garantice la seguridad alimentaria del país","O26_Mejorar_la_igualdad_entre_los_géneros_y_empoderar_a_las_mujeres","O4E2 Incrementar los niveles de tratamiento de aguas residuales y su reutilización"]
[null,"Cuautitlán de García Barragán",null,null,null,null,"Adeudos_Anteriores","1.8.5 Otros",null,"4.11. Aprovechar el potencial turístico de México para generar una mayor derrama económica en el país","O27_Incrementar_la_capacidad_innovadora_en_los_sectores_social_privado_y_público","O4E3 Incrementar y diversificar las fuentes de abastecimiento y captación de agua"]
[null,"Cuautla",null,null,null,null,null,"2.1.1 Ordenación de Desechos",null,"5.1. Ampliar y fortalecer la presencia de México en el mundo",null,"O4E4 Mejorar la potabilización de las aguas para el consumo humano"]
[null,"Cuquío",null,null,null,null,null,"2.1.2 Administración del Agua",null,"5.2. Promover el valor de México en el mundo mediante la difusión económica, turística y cultural",null,"O4E5 Modernizar y ampliar la infraestructura hidroagrícola"]
[null,"Chapala",null,null,null,null,null,"2.1.3 Ordenación de Aguas Residuales, Drenaje y Alcantarillado",null,"5.3. Reafirmar el compromiso del país con el libre comercio, la movilidad de capitales y la integración productiva",null,"O4E6 Ordenar el uso y aprovechamiento del agua en cuencas y acuíferos"]
[null,"Chimaltitán",null,null,null,null,null,"2.1.4 Reducción de la Contaminación",null,"5.4. Velar por los intereses de los mexicanos en el extranjero y proteger los derechos de los extranjeros en el territorio nacional",null,"O4E7 Proteger y recuperar los bosques, humedales y ríos"]
[null,"Chiquilistlán",null,null,null,null,null,"2.1.5 Protección de la Diversidad Biológica y del Paisaje",null,null,null,"O4E8 Reducir el desperdicio del agua y racionalizar su uso"]
[null,"Degollado",null,null,null,null,null,"2.1.6 Otros de Protección Ambiental",null,null,null,"O5E1 Ampliar y articular la red de transporte público masivo incentivando la multimodalidad"]
[null,"Ejutla",null,null,null,null,null,"2.2.1 Urbanización",null,null,null,"O5E2 Incrementar el uso de medios alternativos de traslado, desincentivando el uso del automóvil"]
[null,"Encarnación de Díaz",null,null,null,null,null,"2.2.2 Desarrollo Comunitario",null,null,null,"O5E3 Mejorar la infraestructura y equipamiento para la movilidad motorizada y no motorizada"]
[null,"Etzatlán",null,null,null,null,null,"2.2.3 Abastecimiento de Agua",null,null,null,"O5E4 Mejorar la seguridad y la cultura vial"]
[null,"El Grullo",null,null,null,null,null,"2.2.4 Alumbrado Público",null,null,null,"O5E5 Modernizar los sistemas de transporte público en las ciudades"]
[null,"Guachinango",null,null,null,null,null,"2.2.5 Vivienda",null,null,null,"O6E1 Incrementar la capacitación y profesionalización del personal de protección civil"]
[null,"Guadalajara",null,null,null,null,null,"2.2.6 Servicios Comunales",null,null,null,"O6E2 Incrementar la cultura de protección civil en la sociedad, el gobierno y la empresa"]
[null,"Hostotipaquillo",null,null,null,null,null,"2.2.7 Desarrollo Regional",null,null,null,"O6E3 Mejorar los procedimientos para disminuir los riesgos y la atención de emergencias"]
[null,"Huejúcar",null,null,null,null,null,"2.3.1 Prestación de Servicios de Salud a la Comunidad",null,null,null,"O6E4 Mejorar los sistemas de información de los riesgos a los que está expuesta la población y su entorno"]
[null,"Huejuquilla el Alto",null,null,null,null,null,"2.3.2 Prestación de Servicios de Salud a la Persona",null,null,null,"O6E5 Mejorar y establecer sistemas de alerta temprana multirriesgos"]
[null,"La Huerta",null,null,null,null,null,"2.3.3 Generación de Recursos para la Salud",null,null,null,"O7E1 Aumentar la disponibilidad de capital humano mejor calificado adecuado a la demanda del mercado laboral"]
[null,"Ixtlahuacán de los Membrillos",null,null,null,null,null,"2.3.4 Rectoría del Sistema de Salud",null,null,null,"O7E2 Erradicar el trabajo infantil"]
[null,"Ixtlahuacán del Río",null,null,null,null,null,"2.3.5 Protección Social en Salud",null,null,null,"O7E3 Incrementar la certificación de competencias laborales y profesionales"]
[null,"Jalostotitlán",null,null,null,null,null,"2.4.1 Deporte y Recreación",null,null,null,"O7E4 Incrementar la cultura empresarial de la responsabilidad social"]
[null,"Jamay",null,null,null,null,null,"2.4.2 Cultura",null,null,null,"O7E5 Incrementar la productividad con beneficios compartidos, la empleabilidad y la capacitación en el trabajo"]
[null,"Jesús María",null,null,null,null,null,"2.4.3 Radio, Televisión y Editoriales",null,null,null,"O7E6 Mejorar la protección de los derechos del trabajador"]
[null,"Jilotlán de los Dolores",null,null,null,null,null,"2.4.4 Asuntos Religiosos y Otras Manifestaciones Sociales",null,null,null,"O7E7 Mejorar la remuneración y las condiciones laborales de la población ocupada"]
[null,"Jocotepec",null,null,null,null,null,"2.5.1 Educación Básica",null,null,null,"O7E8 Propiciar el equilibrio entre empleadores y trabajadores para preservar la paz laboral"]
[null,"Juanacatlán",null,null,null,null,null,"2.5.2 Educación Media Superior",null,null,null,"O8E1 Aumentar las exportaciones de las unidades productivas"]
[null,"Juchitlán",null,null,null,null,null,"2.5.3 Educación Superior",null,null,null,"O8E2 Aumentar los niveles de innovación tecnológica, empresarial y social"]
[null,"Lagos de Moreno",null,null,null,null,null,"2.5.4 Posgrado",null,null,null,"O8E3 Estimular el espíritu empresarial y el desarrollo de emprendedores"]
[null,"El Limón",null,null,null,null,null,"2.5.5 Educación para Adultos",null,null,null,"O8E4 Facilitar el acceso al financiamiento y la asistencia técnica, especialmente a la micro y pequeña empresa"]
[null,"Magdalena",null,null,null,null,null,"2.5.6 Otros Servicios Educativos y Actividades Inherentes",null,null,null,"O8E5 Incrementar el desarrollo y la integración de las cadenas productivas, de proveeduría y los clústeres"]
[null,"Santa María del Oro",null,null,null,null,null,"2.6.1 Enfermedad e Incapacidad",null,null,null,"O8E6 Incrementar la inversión extranjera directa"]
[null,"La Manzanilla de la Paz",null,null,null,null,null,"2.6.2 Edad Avanzada",null,null,null,"O8E7 Mejorar e incrementar la infraestructura productiva"]
[null,"Mascota",null,null,null,null,null,"2.6.3 Familia e Hijos",null,null,null,"O8E8 Mejorar la calidad y la productividad de las unidades económicas"]
[null,"Mazamitla",null,null,null,null,null,"2.6.4 Desempleo",null,null,null,"O8E9 Simplificar los trámites y agilizar los procesos de apertura de empresas"]
[null,"Mexticacán",null,null,null,null,null,"2.6.5 Alimentación y Nutrición",null,null,null,"O9E1 Ampliar y modernizar la infraestructura rural productiva"]
[null,"Mezquitic",null,null,null,null,null,"2.6.6 Apoyo Social para la Vivienda",null,null,null,"O9E2 Aumentar la comercialización de los productos del sector primario dentro y fuera del país"]
[null,"Mixtlán",null,null,null,null,null,"2.6.7 Indígenas",null,null,null,"O9E3 Aumentar la industrialización y el valor agregado a la producción del sector primario"]
[null,"Ocotlán",null,null,null,null,null,"2.6.8 Otros Grupos Vulnerables",null,null,null,"O9E4 Incrementar el financiamiento, la capacitación y asistencia técnica a los productores rurales"]
[null,"Ojuelos de Jalisco",null,null,null,null,null,"2.6.9 Otros de Seguridad Social y Asistencia Social",null,null,null,"O9E5 Incrementar la producción sustentable y comercialización de la madera y sus derivados"]
[null,"Pihuamo",null,null,null,null,null,"2.7.1 Otros Asuntos Sociales",null,null,null,"O9E6 Mejorar la sanidad e inocuidad de los productos agropecuarios"]
[null,"Poncitlán",null,null,null,null,null,"3.1.1 Asuntos Económicos y Comerciales en General",null,null,null,"O10E1 Aumentar la atracción y captación de inversión en el sector"]
[null,"Puerto Vallarta",null,null,null,null,null,"3.1.2 Asuntos Laborales Generales",null,null,null,"O10E2 Incrementar la promoción integral de destinos y rutas turísticas"]
[null,"Villa Purificación",null,null,null,null,null,"3.2.1 Agropecuaria",null,null,null,"O10E3 Innovar y diversificar la oferta turística por región y destino de forma sostenible"]
[null,"Quitupan",null,null,null,null,null,"3.2.2 Silvicultura",null,null,null,"O10E4 Mejorar el entorno, la infraestructura y equipamiento en centros turísticos"]
[null,"El Salto",null,null,null,null,null,"3.2.3 Acuacultura, Pesca y Caza",null,null,null,"O10E5 Mejorar las capacidades turísticas locales y promover el emprendurismo en el sector"]
[null,"San Cristóbal de la Barranca",null,null,null,null,null,"3.2.4 Agroindustrial",null,null,null,"O11E1 Ampliar y modernizar la red de ferrocarriles"]
[null,"San Diego de Alejandría",null,null,null,null,null,"3.2.5 Hidroagrícola",null,null,null,"O11E2 Incrementar la accesibilidad a las telecomunicaciones"]
[null,"San Juan de los Lagos",null,null,null,null,null,"3.2.6 Apoyo Financiero a la Banca y Seguro Agropecuario",null,null,null,"O11E3 Incrementar y modernizar la red de carreteras"]
[null,"San Julián",null,null,null,null,null,"3.3.1 Carbón y Otros Combustibles Minerales Sólidos",null,null,null,"O11E4 Modernizar y ampliar la infraestructura aérea y la marítima"]
[null,"San Marcos",null,null,null,null,null,"3.3.2 Petróleo y Gas Natural (Hidrocarburos)",null,null,null,"O11E5 Propiciar la ampliación de servicios logísticos estratégicos para el desarrollo social y económico"]
[null,"San Martín de Bolaños",null,null,null,null,null,"3.3.3 Combustibles Nucleares",null,null,null,"O12E1 Ampliar las capacidades productivas de la población en condiciones de vulnerabilidad"]
[null,"San Martín Hidalgo",null,null,null,null,null,"3.3.4 Otros Combustibles",null,null,null,"O12E2 Incrementar la disponibilidad y el acceso a una adecuada alimentación de la población en condiciones de pobreza"]
[null,"San Miguel el Alto",null,null,null,null,null,"3.3.5 Electricidad",null,null,null,"O12E3 Mejorar el pago de impuestos y servicios públicos acorde con el nivel de vida e ingresos de la población"]
[null,"Gómez Farías",null,null,null,null,null,"3.3.6 Energía no Eléctrica",null,null,null,"O12E4 Mejorar la calidad y espacios en las viviendas de la población en situación de pobreza"]
[null,"San Sebastián del Oeste",null,null,null,null,null,"3.4.1 Extracción de Recursos Minerales excepto los Combustibles Minerales",null,null,null,"O12E5 Promover la cohesión social desde los espacios de deliberación pública, fortaleciendo las organizaciones sociales y la participación comunitaria"]
[null,"Santa María de los Ángeles",null,null,null,null,null,"3.4.2 Manufacturas",null,null,null,"O12E6 Reducir el rezago educativo"]
[null,"Sayula",null,null,null,null,null,"3.4.3 Construcción",null,null,null,"O13E1 Ampliar las capacidades productivas de los grupos prioritarios"]
[null,"Tala",null,null,null,null,null,"3.5.1 Transporte por Carretera",null,null,null,"O13E2 Brindar atención y acompañamiento a la población migrante"]
[null,"Talpa de Allende",null,null,null,null,null,"3.5.2 Transporte por Agua y Puertos",null,null,null,"O13E3 Garantizar la accesibilidad y la inclusión de las personas con discapacidad; y reducir el riego de adquirirla"]
[null,"Tamazula de Gordiano",null,null,null,null,null,"3.5.3 Transporte por Ferrocarril",null,null,null,"O13E4 Garantizar los derechos de los adultos mayores, incrementar su autonomía y promover el envejecimiento activo"]
[null,"Tapalpa",null,null,null,null,null,"3.5.4 Transporte Aéreo",null,null,null,"O13E5 Garantizar y restituir los derechos de las niñas, niños y adolescentes"]
[null,"Tecalitlán",null,null,null,null,null,"3.5.5 Transporte por Oleoductos y Gasoductos y Otros Sistemas de Transporte",null,null,null,"O13E6 Incrementar el ingreso, permanencia y conclusión de la formación educativa de estudiantes indígenas"]
[null,"Tecolotlán",null,null,null,null,null,"3.5.6 Otros Relacionados con Transporte",null,null,null,"O13E7 Mejorar la dotación de servicios públicos en las localidades con población indígena"]
[null,"Techaluta de Montenegro",null,null,null,null,null,"3.6.1 Comunicaciones",null,null,null,"O13E8 Reducir la violencia intrafamiliar y comunitaria"]
[null,"Tenamaxtlán",null,null,null,null,null,"3.7.1 Turismo",null,null,null,"O13E9 Reducir los principales riesgos sociales y de salud a los que está expuesta la población joven (alcoholismo y drogadicción, embarazos adolescente, abandono escolar)"]
[null,"Teocaltiche",null,null,null,null,null,"3.7.2 Hoteles y Restaurantes",null,null,null,"O14E1 Impulsar la integración y universalidad de los servicios de salud"]
[null,"Teocuitatlán de Corona",null,null,null,null,null,"3.8.1 Investigación Científica",null,null,null,"O14E2 Incrementar el acceso efectivo a los servicios de salud, en especial la población en condiciones de vulnerabilidad y pobreza"]
[null,"Tepatitlán de Morelos",null,null,null,null,null,"3.8.2 Desarrollo Tecnológico",null,null,null,"O14E3 Mejorar la calidad en la prestación de los servicios de salud"]
[null,"Tequila",null,null,null,null,null,"3.8.3 Servicios Científicos y Tecnológicos",null,null,null,"O14E4 Reducir el sobrepeso y la obesidad de la población"]
[null,"Teuchitlán",null,null,null,null,null,"3.8.4 Innovación",null,null,null,"O14E5 Reducir y controlar los factores de riesgo para la salud con enfoque preventivo a la comunidad"]
[null,"Tizapán el Alto",null,null,null,null,null,"3.9.1 Comercio, Distribución, Almacenamiento y Depósito",null,null,null,"O15E1 Facilitar el acceso al financiamiento para adquirir una vivienda propia a la población más vulnerable"]
[null,"Tlajomulco de Zúñiga",null,null,null,null,null,"3.9.2 Otras Industrias",null,null,null,"O15E2 Garantizar la aplicación de los instrumentos de planeación urbana en la construcción de fraccionamientos y para evitar asentamiento irregulares"]
[null,"Tlaquepaque",null,null,null,null,null,"3.9.3 Otros Asuntos Económicos",null,null,null,"O15E3 Garantizar reservas territoriales suficientes para la construcción de viviendas"]
[null,"Tolimán",null,null,null,null,null,"4.1.1 Deuda Pública Interna",null,null,null,"O15E4 Incrementar la efectividad de los programas sociales dirigidos a la adquisición, autoconstrucción y mejora de la vivienda"]
[null,"Tomatlán",null,null,null,null,null,"4.1.2 Deuda Pública Externa",null,null,null,"O15E5 Mejorar el entorno y servicios en las viviendas en zonas urbanas y rurales marginadas"]
[null,"Tonalá",null,null,null,null,null,"4.2.1 Transferencias entre Diferentes Niveles y Ordenes de Gobierno",null,null,null,"O15E6 Mejorar los procesos de certificación de la propiedad de la vivienda en asentamientos irregulares"]
[null,"Tonaya",null,null,null,null,null,"4.2.2 Participaciones entre Diferentes Niveles y Ordenes de Gobierno",null,null,null,"O16E1 Ampliar la oferta, la calidad y el acceso para realizar estudios de posgrado y de educación continua"]
[null,"Tonila",null,null,null,null,null,"4.2.3 Aportaciones entre Diferentes Niveles y Ordenes de Gobierno",null,null,null,"O16E2 Ampliar las oportunidades educativas, en especial la población en condiciones de vulnerabilidad y pobreza"]
[null,"Totatiche",null,null,null,null,null,"4.3.1 Saneamiento del Sistema Financiero",null,null,null,"O16E3 Ampliar y mejorar la enseñanza de la ciencia y la tecnología en la educación básica"]
[null,"Tototlán",null,null,null,null,null,"4.3.2 Apoyos IPAB",null,null,null,"O16E4 Diversificar la oferta de programas de educación superior y sus modalidades"]
[null,"Tuxcacuesco",null,null,null,null,null,"4.3.3 Banca de Desarrollo",null,null,null,"O16E5 Incrementar en la educación superior la movilidad de estudiantes y académicos a nivel estatal, nacional e internacional"]
[null,"Tuxcueca",null,null,null,null,null,"4.3.4 Apoyo a los programas de reestructura en unidades de inversión (UDIS)",null,null,null,"O16E6 Incrementar espacios educativos comunes que permitan la conjunción de esfuerzos de instituciones para mejorar la calidad y consolidar el clúster de la educación superior en el estado"]
[null,"Tuxpan",null,null,null,null,null,"4.4.1 Adeudos de Ejercicios Fiscales Anteriores",null,null,null,"O16E7 Incrementar la cobertura de la educación media superior y superior"]
[null,"Unión de San Antonio",null,null,null,null,null,null,null,null,null,"O16E8 Mejorar el aprendizaje de un segundo idioma por parte de los estudiantes en todos los niveles educativos, particularmente el básico"]
[null,"Unión de Tula",null,null,null,null,null,null,null,null,null,"O16E9 Mejorar la capacitación y actualización de docente y directivos del sistema educativo"]
[null,"Valle de Guadalupe",null,null,null,null,null,null,null,null,null,"O16E10 Reducir el rezago educativo"]
[null,"Valle de Juárez",null,null,null,null,null,null,null,null,null,"O16E11 Reducir la violencia en los planteles educativos"]
[null,"San Gabriel",null,null,null,null,null,null,null,null,null,"O17E1 Ampliar y mejorar los instrumentos de transferencia y difusión tecnológica"]
[null,"San Ignacio Cerro Gordo",null,null,null,null,null,null,null,null,null,"O17E2 Aumentar las fuentes de financiamiento para actividades de ciencia y tecnología"]
[null,"Villa Corona",null,null,null,null,null,null,null,null,null,"O17E3 Aumentar las instituciones y empresas que realizan actividades de investigación y desarrollo tecnológico"]
[null,"Villa Guerrero",null,null,null,null,null,null,null,null,null,"O17E4 Incrementar el desarrollo de proyectos científicos tecnológicos entre los sectores académicos y las empresas"]
[null,"Villa Hidalgo",null,null,null,null,null,null,null,null,null,"O17E5 Incrementar la I+D en las empresas que exportan productos de alta tecnología"]
[null,"Cañadas de Obregón",null,null,null,null,null,null,null,null,null,"O17E6 Incrementar la investigación y el desarrollo tecnológico en las instituciones educativas"]
[null,"Yahualica de González Gallo",null,null,null,null,null,null,null,null,null,"O17E7 Mejorar y ampliar la formación de recursos humanos calificados en el campo de la investigación y desarrollo"]
[null,"Zacoalco de Torres",null,null,null,null,null,null,null,null,null,"O18E1 Diversificar y ampliar las alternativas de recreación cultural en regiones y municipios"]
[null,"Zapopan",null,null,null,null,null,null,null,null,null,"O18E2 Garantizar la disponibilidad, seguridad y conservación de los espacios y sitios culturales"]
[null,"Zapotiltic",null,null,null,null,null,null,null,null,null,"O18E3 Incrementar la disponibilidad de recursos humanos en el ámbito artístico"]
[null,"Zapotitlán de Vadillo",null,null,null,null,null,null,null,null,null,"O18E4 Incrementar las capacidades creativas y de producción artística de la población"]
[null,"Zapotlán del Rey",null,null,null,null,null,null,null,null,null,"O18E5 Mejorar las condiciones materiales, humanas e institucionales vinculadas a la cultura"]
[null,"Zapotlanejo",null,null,null,null,null,null,null,null,null,"O19E1 Acrecentar la capacitación y formación de instructores y entrenadores en actividades físicas y deportivas"]
[null,null,null,null,null,null,null,null,null,null,null,"O19E2 Incrementar la práctica de actividades físicas y deportivas en todos los niveles educativos, y la población en general"]
[null,null,null,null,null,null,null,null,null,null,null,"O19E3 Incrementar y mejorar los espacios para la práctica de actividades físicas y deportivas"]
[null,null,null,null,null,null,null,null,null,null,null,"O19E4 Mejorar y ampliar el sistema estatal del deporte de alto rendimiento"]
[null,null,null,null,null,null,null,null,null,null,null,"O19E5 Promover la práctica del deporte competitivo en el ámbito local, regional y estatal"]
[null,null,null,null,null,null,null,null,null,null,null,"O20E1 Fortalecer las capacidades y equipamiento de los cuerpos de seguridad pública"]
[null,null,null,null,null,null,null,null,null,null,null,"O20E2 Garantizar la honestidad, confianza y el profesionalismo del personal que labora en las instituciones de seguridad pública y privada a través de un sistema adecuado de evaluación"]
[null,null,null,null,null,null,null,null,null,null,null,"O20E3 Incrementar el acceso de la población a las actividades culturales, deportivas y recreativas"]
[null,null,null,null,null,null,null,null,null,null,null,"O20E4 Incrementar el nivel de denuncia ciudadana y su correcta atención"]
[null,null,null,null,null,null,null,null,null,null,null,"O20E5 Incrementar la participación ciudadana en la prevención del delito"]
[null,null,null,null,null,null,null,null,null,null,null,"O20E6 Intensificar y mejorar la comunicación en materia de prevención del delito y combate a la inseguridad"]
[null,null,null,null,null,null,null,null,null,null,null,"O21E1 Concluir y consolidar el nuevo sistema penal acusatorio"]
[null,null,null,null,null,null,null,null,null,null,null,"O21E2 Disminuir la incidencia de los actos de corrupción"]
[null,null,null,null,null,null,null,null,null,null,null,"O21E3 Facilitar el acceso de la justicia a nivel local y regional"]
[null,null,null,null,null,null,null,null,null,null,null,"O21E4 Incrementar el uso de métodos alternativos de solución de conflictos"]
[null,null,null,null,null,null,null,null,null,null,null,"O21E5 Mejorar el sistema penal con el propósito de reducir la sobrepoblación penitenciaria"]
[null,null,null,null,null,null,null,null,null,null,null,"O21E6 Mejorar la capacitación y formación de los recursos humanos del poder judicial"]
[null,null,null,null,null,null,null,null,null,null,null,"O21E7 Proporcionar asistencia y representación eficaz a las víctimas con perspectiva de derechos humanos"]
[null,null,null,null,null,null,null,null,null,null,null,"O22E1 Aumentar la probabilidad de captura y condena por delitos cometidos"]
[null,null,null,null,null,null,null,null,null,null,null,"O22E2 Disminuir la incidencia de los actos de corrupción"]
[null,null,null,null,null,null,null,null,null,null,null,"O22E3 Investigar y perseguir el delito con mayor eficacia"]
[null,null,null,null,null,null,null,null,null,null,null,"O22E4 Mejorar la calidad de los servicios que prestan los ministerios públicos"]
[null,null,null,null,null,null,null,null,null,null,null,"O22E5 Mejorar la capacitación y formación de los recursos humanos para la procuración de justicia"]
[null,null,null,null,null,null,null,null,null,null,null,"O22E6 Mejorar la percepción ciudadana sobre el quehacer del sistema de procuración de justicia"]
[null,null,null,null,null,null,null,null,null,null,null,"O23E1 Disminuir la incidencia de las violaciones a los Derechos Humanos"]
[null,null,null,null,null,null,null,null,null,null,null,"O23E2 Mejorar la atención a las víctimas de violaciones a los derechos humanos"]
[null,null,null,null,null,null,null,null,null,null,null,"O23E3 Reducir la violencia y discriminación, particularmente aquella ejercida en contra de grupos en situación de vulnerabilidad"]
[null,null,null,null,null,null,null,null,null,null,null,"O24E1 Contribuir al desarrollo democrático social y político"]
[null,null,null,null,null,null,null,null,null,null,null,"O24E2 Incrementar la participación ciudadana en asuntos públicos y en organizaciones civiles y comunitarias"]
[null,null,null,null,null,null,null,null,null,null,null,"O24E3 Mejorar la coordinación de los tres órdenes y niveles de gobierno"]
[null,null,null,null,null,null,null,null,null,null,null,"O24E4 Prevenir y gestionar conflictos sociales a través del diálogo constructivo"]
[null,null,null,null,null,null,null,null,null,null,null,"O25E1 Disminuir la incidencia de los actos de corrupción"]
[null,null,null,null,null,null,null,null,null,null,null,"O25E2 Impulsar un gobierno abierto, promotor de la transparencia, la rendición de cuentas, la participación ciudadana y del uso de las tecnologías de información y comunicación"]
[null,null,null,null,null,null,null,null,null,null,null,"O25E3 Incrementar la disponibilidad de recursos financieros y mejorar su uso y asignación"]
[null,null,null,null,null,null,null,null,null,null,null,"O25E4 Mejorar la calidad y disponibilidad de información para la toma de decisiones de la sociedad y el gobierno"]
[null,null,null,null,null,null,null,null,null,null,null,"O25E5 Mejorar la calidad y la prestación de servicios públicos"]
[null,null,null,null,null,null,null,null,null,null,null,"O25E6 Mejorar la capacitación y profesionalización de los funcionarios y servidores públicos"]
[null,null,null,null,null,null,null,null,null,null,null,"O25E7 Mejorar la planeación, programación, el seguimiento y la evaluación para una gestión pública eficiente orientada a resultados"]
[null,null,null,null,null,null,null,null,null,null,null,"O26E1 Asegurar el acceso igualitario a la justicia"]
[null,null,null,null,null,null,null,null,null,null,null,"O26E2 Garantizar el acceso universal a la salud reproductiva y sexual"]
[null,null,null,null,null,null,null,null,null,null,null,"O26E3 Incrementar el acceso a la educación de niñas y mujeres"]
[null,null,null,null,null,null,null,null,null,null,null,"O26E4 Incrementar la participación de las mujeres en cargos públicos y en puestos de elección popular"]
[null,null,null,null,null,null,null,null,null,null,null,"O26E5 Incrementar las oportunidades laborales dignas para las mujeres, en particular las mujeres jefas de familia"]
[null,null,null,null,null,null,null,null,null,null,null,"O26E6 Reducir la violencia contra las mujeres"]
[null,null,null,null,null,null,null,null,null,null,null,"O27E1 Crear espacios físicos y virtuales, y otros mecanismos de diálogo y reflexión para generar soluciones innovadoras a problemas públicos y sociales"]
[null,null,null,null,null,null,null,null,null,null,null,"O27E2 Desarrollar alianzas y redes entre empresas, gobierno, grupos sociales y universidades para impulsar la innovación, el emprendurismo y la creatividad que genere la creación de valor público y económico"]
[null,null,null,null,null,null,null,null,null,null,null,"O27E3 Incrementar las actividades de investigación y desarrollo, principalmente en el sector agropecuario, la industria alimentaria, la industria creativa y la biotecnológica"]
[null,null,null,null,null,null,null,null,null,null,null,"O27E4 Promover la innovación en el sector gubernamental en todos los órdenes y niveles de gobierno"]